fUSD/lending_fUSD_20260601
["ID","MTS","AMOUNT","RATE_DAILY","PERIOD"]
[423696942,1780316974000,-500.0,0.00039527,120]
[423696939,1780316974000,-500.0,0.00039527,120]
[423696940,1780316974000,-500.0,0.00039527,120]
[423696941,1780316974000,-500.0,0.00039527,120]
[423696944,1780316974000,-500.0,0.00039527,120]
[423696938,1780316974000,-500.0,0.00039527,120]
[423696945,1780316974000,-500.0,0.00039527,120]
[423696943,1780316974000,-500.0,0.00039527,120]
[423696952,1780316974000,-500.0,0.00039527,120]
[423696951,1780316974000,-500.0,0.00039527,120]
[423696949,1780316974000,-594.15117224,0.00039527,120]
[423696953,1780316974000,-500.0,0.00039527,120]
[423696947,1780316974000,-500.0,0.00039527,120]
[423696948,1780316974000,-500.0,0.00039527,120]
[423696946,1780316974000,-500.0,0.00039527,120]
[423696950,1780316974000,-500.0,0.00039527,120]
[423696960,1780316975000,-500.0,0.00039527,120]
[423696955,1780316975000,-500.0,0.00039527,120]
[423696954,1780316975000,-500.0,0.00039527,120]
[423696956,1780316975000,-500.0,0.00039527,120]
[423696957,1780316975000,-500.0,0.00039527,120]
[423696958,1780316975000,-500.0,0.00039527,120]
[423696959,1780316975000,-500.80000054,0.00039527,120]
[423696962,1780316975000,-178.91514732,0.00039527,120]
[423696964,1780316975000,-292.93,0.00039527,120]
[423696963,1780316975000,-535.34035707,0.00039527,120]
[423696965,1780316975000,-209.9937504,0.00039527,120]
[423696966,1780316975000,-162.43425572,0.00039527,120]
[423696967,1780316975000,-254.03071896,0.00039527,120]
[423696968,1780316975000,-212.97384802,0.00039527,120]
[423696969,1780316975000,-630.46894856,0.00039527,90]
[423696970,1780316975000,-153.19946268,0.00039527,120]
[423696971,1780316975000,-261.21837597,0.00039527,120]
[423696961,1780316975000,-5000.0,0.00039527,120]
[423696977,1780316976000,-340.90241895,0.00039527,120]
[423696972,1780316976000,-330.34966781,0.00039527,120]
[423696973,1780316976000,-152.458789,0.00039527,120]
[423696974,1780316976000,-229.84688639,0.00039527,120]
[423696975,1780316976000,-412.6759739,0.00039527,120]
[423696976,1780316976000,-240.71768504,0.00039527,120]
[423696978,1780316976000,-238.09257938,0.00039527,120]
[423696979,1780316976000,-588.65815034,0.00039527,120]
[423696980,1780316976000,-215.8376155,0.00039527,120]
[423696981,1780316976000,-569.45611786,0.00039527,120]
[423696982,1780316976000,-410.49519951,0.00039527,120]
[423696984,1780316976000,-153.25526486,0.00039527,120]
[423696983,1780316976000,-234.74558039,0.00039527,120]
[423696986,1780316976000,-272.4051204,0.00039527,120]
[423696985,1780316976000,-243.68363187,0.00039527,120]
[423696987,1780316977000,-586.29150504,0.00039527,120]
[423696988,1780316977000,-208.57911432,0.00039527,120]
[423696990,1780316977000,-218.37288705,0.00039527,120]
[423696989,1780316977000,-500.0,0.00039527,120]
[423696992,1780316977000,-500.0,0.00039527,120]
[423696991,1780316977000,-553.57365464,0.00039527,120]
[423696994,1780316977000,-251.54421965,0.00039527,120]
[423696995,1780316977000,-413.31746656,0.00039527,120]
[423696993,1780316977000,-213.41700235,0.00039527,120]
[423696996,1780316977000,-500.0,0.00039527,120]
[423696999,1780316977000,-188.71981963,0.00039527,120]
[423696998,1780316977000,-276.2863464,0.00039527,120]
[423697000,1780316977000,-500.0,0.00039527,120]
[423697001,1780316977000,-158.1961,0.00039527,120]
[423697002,1780316977000,-348.35495288,0.00039527,120]
[423697004,1780316977000,-500.0,0.00039527,120]
[423696997,1780316977000,-206.50415856,0.00039527,120]
[423697003,1780316977000,-206.8882965,0.00039527,120]
[423697011,1780316978000,-222.0785796,0.00039527,120]
[423697010,1780316978000,-264.450715,0.00039527,120]
[423697009,1780316978000,-208.76508649,0.00039527,120]
[423697006,1780316978000,-500.0,0.00039527,120]
[423697007,1780316978000,-500.0,0.00039527,120]
[423697005,1780316978000,-391.11371645,0.00039527,120]
[423697008,1780316978000,-297.8638387,0.00039527,120]
[423697013,1780316978000,-362.70887286,0.00039527,120]
[423697020,1780316978000,-517.76422112,0.00039527,120]
[423697015,1780316978000,-514.43299774,0.00039527,120]
[423697014,1780316978000,-359.46881298,0.00039527,120]
[423697016,1780316978000,-500.0,0.00039527,120]
[423697017,1780316978000,-500.0,0.00039527,120]
[423697018,1780316978000,-179.95824231,0.00039527,120]
[423697019,1780316978000,-500.0,0.00039527,120]
[423697021,1780316978000,-500.0,0.00039527,120]
[423697012,1780316978000,-165.30554317,0.00039527,120]
[423697022,1780316979000,-574.28062288,0.00039527,120]
[423697023,1780316979000,-209.93764958,0.00039527,120]
[423697024,1780316979000,-164.69521375,0.00039527,120]
[423697026,1780316979000,-246.9320982,0.00039527,120]
[423697025,1780316979000,-1460.05267037,0.00039527,120]
[423697027,1780316979000,-595.33550145,0.00039527,120]
[423697029,1780316979000,-511.93125137,0.00039527,120]
[423697031,1780316979000,-303.07685815,0.00039527,120]
[423697028,1780316979000,-178.54799217,0.00039527,120]
[423697033,1780316979000,-333.68762034,0.00039527,120]
[423697032,1780316979000,-174.38230098,0.00039527,120]
[423697034,1780316979000,-353.99591477,0.00039527,120]
[423697036,1780316979000,-251.18851316,0.00039527,120]
[423697035,1780316979000,-500.0,0.00039527,120]
[423697037,1780316979000,-564.3677,0.00039527,120]
[423697038,1780316979000,-255.66694386,0.00039527,120]
[423697030,1780316979000,-154.31584713,0.00039527,120]
[423697039,1780316979000,-239.1356234,0.00039527,120]
[423697047,1780316980000,-267.70457255,0.00039527,120]
[423697045,1780316980000,-295.22072089,0.00039527,120]
[423697046,1780316980000,-632.77729861,0.00039527,120]
[423697044,1780316980000,-179.94915029,0.00039527,120]
[423697040,1780316980000,-152.76778181,0.00039527,120]
[423697042,1780316980000,-191.54106211,0.00039527,120]
[423697041,1780316980000,-237.00608666,0.00039527,120]
[423697043,1780316980000,-291.26581058,0.00039527,120]
[423697049,1780316980000,-1609.21,0.00039527,120]
[423697057,1780316980000,-1853.8459,0.00039527,30]
[423697051,1780316980000,-4594.886,0.00039527,120]
[423697050,1780316980000,-296.58565731,0.00039527,120]
[423697052,1780316980000,-80134.32347748,0.00039527,120]
[423697053,1780316980000,-3240.2053742,0.00039527,90]
[423697054,1780316980000,-2056.93,0.00039527,120]
[423697055,1780316980000,-345.5,0.00039527,120]
[423697056,1780316980000,-171.0,0.00039527,120]
[423697058,1780316980000,-500.0,0.00039527,120]
[423697048,1780316980000,-2346.7,0.00039527,120]
[423697065,1780316981000,-522.01267637,0.00039527,120]
[423697064,1780316981000,-500.0,0.00039527,120]
[423697067,1780316981000,-629.70754725,0.00039527,90]
[423697059,1780316981000,-500.0,0.00039527,120]
[423697062,1780316981000,-500.0,0.00039527,120]
[423697060,1780316981000,-500.0,0.00039527,120]
[423697061,1780316981000,-500.0,0.00039527,120]
[423697063,1780316981000,-500.0,0.00039527,120]
[423697066,1780316981000,-10470.2862001,0.00039527,120]
[423697072,1780316981000,-1066.7586429,0.00039527,30]
[423697068,1780316981000,-275.8214162,0.00039527,60]
[423697069,1780316981000,-219.06851526,0.00039527,120]
[423697076,1780316981000,-689.82758021,0.00039527,30]
[423697077,1780316981000,-452.29286203,0.00039527,120]
[423697074,1780316981000,-163.58360142,0.00039527,120]
[423697078,1780316981000,-296.58141745,0.00039527,120]
[423697073,1780316981000,-2456.87527089,0.00039527,120]
[423697070,1780316981000,-1219.12784653,0.00039527,120]
[423697071,1780316981000,-344.39560919,0.00039527,30]
[423697075,1780316981000,-272.83063082,0.00039527,120]
[423697085,1780316982000,-187.22157811,0.00039527,120]
[423697079,1780316982000,-287.38231448,0.00039527,120]
[423697080,1780316982000,-332.26128243,0.00039527,120]
[423697082,1780316982000,-539.7707496,0.00039527,30]
[423697081,1780316982000,-223.3192399,0.00039527,30]
[423697083,1780316982000,-307.77279383,0.00039527,120]
[423697084,1780316982000,-1730.35885769,0.00039527,120]
[423697086,1780316982000,-1383.41941559,0.00039527,120]
[423697087,1780316982000,-4463.92182814,0.00039527,120]
[423697088,1780316982000,-759.01834447,0.00039527,30]
[423697089,1780316982000,-285.4825376,0.00039527,120]
[423697090,1780316982000,-48470.37359561,0.00039527,60]
[423697091,1780316982000,-3272.59898958,0.00039527,30]
[423697092,1780316982000,-499.76375851,0.00039527,120]
[423697093,1780316982000,-7967.04441455,0.00039527,60]
[423697094,1780316982000,-421.26783571,0.00039527,30]
[423697095,1780316982000,-552.25301309,0.00039527,30]
[423697102,1780316983000,-413.04254025,0.00039527,30]
[423697101,1780316983000,-269.7094362,0.00039527,120]
[423697099,1780316983000,-609.0262578,0.00039527,30]
[423697096,1780316983000,-237.35706677,0.00039527,120]
[423697098,1780316983000,-724.38044726,0.00039527,120]
[423697097,1780316983000,-5610.18231513,0.00039527,30]
[423697103,1780316983000,-214.94374034,0.00039527,120]
[423697100,1780316983000,-266.53036739,0.00039527,30]
[423697104,1780316983000,-354.99167727,0.00039527,120]
[423697108,1780316983000,-384.0713982,0.00039527,120]
[423697106,1780316983000,-259.64626358,0.00039527,30]
[423697105,1780316983000,-571.31339333,0.00039527,30]
[423697113,1780316983000,-429.4077821,0.00039527,30]
[423697112,1780316983000,-1671.52873667,0.00039527,30]
[423697111,1780316983000,-1872.32015427,0.00039527,30]
[423697114,1780316983000,-1922.63354276,0.00039527,30]
[423697110,1780316983000,-222.98180346,0.00039527,120]
[423697115,1780316983000,-931.05315836,0.00039527,30]
[423697107,1780316983000,-603.89471328,0.00039527,30]
[423697109,1780316983000,-234.50561148,0.00039527,120]
[423697123,1780316984000,-500.0,0.00039527,120]
[423697116,1780316984000,-932.76878102,0.00039527,120]
[423697117,1780316984000,-4965.35991686,0.00039527,30]
[423697118,1780316984000,-639.58700867,0.00039527,30]
[423697119,1780316984000,-4689.55158511,0.00039527,30]
[423697121,1780316984000,-500.0,0.00039527,120]
[423697120,1780316984000,-157.38067532,0.00039527,30]
[423697122,1780316984000,-500.0,0.00039527,120]
[423697126,1780316984000,-500.0,0.00039527,120]
[423697124,1780316984000,-500.0,0.00039527,120]
[423697128,1780316984000,-500.0,0.00039527,120]
[423697127,1780316984000,-500.0,0.00039527,120]
[423697129,1780316984000,-500.0,0.00039527,120]
[423697130,1780316984000,-500.0,0.00039527,120]
[423697131,1780316984000,-500.0,0.00039527,120]
[423697132,1780316984000,-500.0,0.00039527,120]
[423697125,1780316984000,-500.0,0.00039527,120]
[423697136,1780316985000,-500.0,0.00039527,120]
[423697135,1780316985000,-500.0,0.00039527,120]
[423697134,1780316985000,-500.0,0.00039527,120]
[423697137,1780316985000,-500.0,0.00039527,120]
[423697133,1780316985000,-500.0,0.00039527,120]
[423697139,1780316985000,-500.0,0.00039527,120]
[423697141,1780316985000,-834.67856439,0.00039527,120]
[423697140,1780316985000,-193.70857156,0.00039527,120]
[423697142,1780316985000,-167.7112262,0.00039527,120]
[423697138,1780316985000,-500.0,0.00039527,120]
[423697143,1780316985000,-4176421.2762042,0.00039527,30]
[423697144,1780317001000,-570.14962092,8.965e-05,2]
[423697146,1780317002000,350.78,0.00030137,120]
[423697145,1780317002000,350.78,0.00030137,120]
[423697221,1780317040000,-163.2,9.087e-05,2]
[423697239,1780317041000,-163.2,9.385e-05,2]
[423697238,1780317041000,-250.0,9.341e-05,2]
[423697240,1780317041000,-455.32832,9.546e-05,2]
[423697241,1780317041000,-600.0,9.546e-05,2]
[423697243,1780317041000,-1243.66173485,9.546e-05,2]
[423697242,1780317041000,-1636.27833148,9.546e-05,2]
[423697244,1780317041000,-6393.06467961,9.546e-05,2]
[423697245,1780317041000,-4121.83983911,9.546e-05,2]
[423697250,1780317041000,-343.29292514,9.546e-05,2]
[423697247,1780317041000,-22871.84405372,9.546e-05,2]
[423697249,1780317041000,-3366.73601876,9.546e-05,2]
[423697253,1780317041000,-385.8722162,9.546e-05,2]
[423697251,1780317041000,-450.31875,9.546e-05,2]
[423697252,1780317041000,-13978.86332071,9.546e-05,2]
[423697254,1780317041000,-693.04329282,9.546e-05,2]
[423697255,1780317041000,-972.8454993,9.546e-05,2]
[423697246,1780317041000,-301626.19705016,9.546e-05,2]
[423697261,1780317042000,-17989.00824035,9.546e-05,2]
[423697262,1780317042000,-16815.59157669,9.546e-05,2]
[423697265,1780317042000,-1440.0,9.546e-05,2]
[423697263,1780317042000,-656.13120055,9.546e-05,2]
[423697264,1780317042000,-72000.00000001,9.546e-05,2]
[423697302,1780317043000,-500.0,9.669e-05,2]
[423697304,1780317043000,-500.0,9.669e-05,2]
[423697303,1780317043000,-500.0,9.669e-05,2]
[423697306,1780317043000,-500.0,9.669e-05,2]
[423697308,1780317043000,-500.0,9.669e-05,2]
[423697309,1780317043000,-500.0,9.669e-05,2]
[423697315,1780317043000,-5000.0,9.747e-05,2]
[423697311,1780317043000,-190.42,9.729e-05,2]
[423697318,1780317043000,-200.70074595,9.817e-05,2]
[423697312,1780317043000,-1750.12819312,9.747e-05,2]
[423697316,1780317043000,-2500.0,9.747e-05,2]
[423697310,1780317043000,-590.11097753,9.669e-05,2]
[423697325,1780317043000,-151.0,9.924e-05,2]
[423697317,1780317043000,-250.0,9.769e-05,2]
[423697313,1780317043000,-33240.6068,9.747e-05,2]
[423697314,1780317043000,-2000.0,9.747e-05,2]
[423697320,1780317043000,-150.0,9.846e-05,2]
[423697322,1780317043000,-359889.33,9.857e-05,2]
[423697327,1780317043000,-2643583.2643911,9.956e-05,2]
[423697307,1780317043000,-500.0,9.669e-05,2]
[423697319,1780317043000,-10000.0,9.827e-05,2]
[423697305,1780317043000,-500.0,9.669e-05,2]
[423697275,1780317043000,-1844.2698157,9.646e-05,2]
[423697299,1780317043000,-374.32518961,9.669e-05,2]
[423697324,1780317043000,-500.0,9.92e-05,2]
[423697268,1780317043000,-1301393.80475014,9.546e-05,2]
[423697279,1780317043000,-2940.803,9.647e-05,2]
[423697281,1780317043000,-168.887,9.647e-05,2]
[423697270,1780317043000,-186.22499167,9.546e-05,2]
[423697267,1780317043000,-417.2536004,9.546e-05,2]
[423697272,1780317043000,-15695.3766,9.57e-05,2]
[423697277,1780317043000,-582.26868508,9.646e-05,2]
[423697282,1780317043000,-6814.2424,9.647e-05,2]
[423697301,1780317043000,-500.0,9.669e-05,2]
[423697283,1780317043000,-1500000.0,9.647e-05,2]
[423697287,1780317043000,-500.0,9.669e-05,2]
[423697286,1780317043000,-500.0,9.669e-05,2]
[423697296,1780317043000,-500.0,9.669e-05,2]
[423697298,1780317043000,-500.0,9.669e-05,2]
[423697284,1780317043000,-1000.0,9.667e-05,2]
[423697290,1780317043000,-500.0,9.669e-05,2]
[423697294,1780317043000,-500.0,9.669e-05,2]
[423697292,1780317043000,-500.0,9.669e-05,2]
[423697300,1780317043000,-500.0,9.669e-05,2]
[423697285,1780317043000,-454.22443613,9.669e-05,2]
[423697321,1780317043000,-154.69286723,9.857e-05,2]
[423697345,1780317043000,-150.0,9.986e-05,2]
[423697326,1780317043000,-73629.0274629,9.956e-05,2]
[423697354,1780317043000,-345.96519996,9.998e-05,2]
[423697355,1780317043000,-163.58,0.0001,2]
[423697353,1780317043000,-250.0,9.996e-05,2]
[423697356,1780317043000,-1321.06091027,0.0001,2]
[423697357,1780317043000,-150.0,0.00010001,2]
[423697359,1780317043000,-345.96519996,0.00010009,2]
[423697360,1780317043000,-150.0,0.00010009,2]
[423697358,1780317043000,-1165.332791,0.00010004,2]
[423697361,1780317043000,-164.55,0.0001001,2]
[423697363,1780317043000,-150.0,0.00010016,2]
[423697365,1780317043000,-150.0,0.00010025,2]
[423697364,1780317043000,-345.96519996,0.0001002,2]
[423697367,1780317043000,-150.0,0.00010026,2]
[423697368,1780317043000,-4000.0,0.00010027,2]
[423697369,1780317043000,-345.96519996,0.00010031,2]
[423697373,1780317043000,-345.96519996,0.00010042,2]
[423697371,1780317043000,-150.0,0.00010033,2]
[423697372,1780317043000,-150.0,0.00010039,2]
[423697370,1780317043000,-150.0,0.00010031,2]
[423697323,1780317043000,-1117.09,9.857e-05,2]
[423697374,1780317043000,-166.66,0.00010044,2]
[423697346,1780317043000,-150.0,9.986e-05,2]
[423697349,1780317043000,-150.0,9.986e-05,2]
[423697362,1780317043000,-150.0,0.00010013,2]
[423697334,1780317043000,-8148.47504108,9.956e-05,2]
[423697347,1780317043000,-150.0,9.986e-05,2]
[423697330,1780317043000,-151.0,9.956e-05,2]
[423697331,1780317043000,-153.437652,9.956e-05,2]
[423697333,1780317043000,-1313.13113362,9.956e-05,2]
[423697332,1780317043000,-151.0,9.956e-05,2]
[423697337,1780317043000,-691.139193,9.956e-05,2]
[423697338,1780317043000,-691.139193,9.956e-05,2]
[423697336,1780317043000,-691.139193,9.956e-05,2]
[423697335,1780317043000,-298.04253393,9.956e-05,2]
[423697339,1780317043000,-691.139193,9.956e-05,2]
[423697340,1780317043000,-150.0,9.986e-05,2]
[423697342,1780317043000,-150.0,9.986e-05,2]
[423697352,1780317043000,-475.349282,9.992e-05,2]
[423697351,1780317043000,-345.96519996,9.986e-05,2]
[423697341,1780317043000,-150.0,9.986e-05,2]
[423697343,1780317043000,-150.0,9.986e-05,2]
[423697344,1780317043000,-150.0,9.986e-05,2]
[423697350,1780317043000,-150.0,9.986e-05,2]
[423697348,1780317043000,-150.0,9.986e-05,2]
[423697328,1780317043000,-500.0,9.956e-05,2]
[423697329,1780317043000,-151.0,9.956e-05,2]
[423697421,1780317044000,-345.96519996,0.00010177,2]
[423697418,1780317044000,-150.0,0.00010171,2]
[423697414,1780317044000,-345.96519996,0.00010154,2]
[423697422,1780317044000,-150.0,0.00010178,2]
[423697429,1780317044000,-150.0,0.00010196,2]
[423697420,1780317044000,-150.0,0.00010171,2]
[423697404,1780317044000,-150.0,0.00010125,2]
[423697406,1780317044000,-150.0,0.00010136,2]
[423697423,1780317044000,-1321.06091027,0.00010179,2]
[423697403,1780317044000,-150.0,0.00010121,2]
[423697413,1780317044000,-150.0,0.00010151,2]
[423697416,1780317044000,-150.0,0.00010166,2]
[423697434,1780317044000,-150.0,0.00010211,2]
[423697415,1780317044000,-345.96519996,0.00010166,2]
[423697424,1780317044000,-150.0,0.00010181,2]
[423697419,1780317044000,-150.0,0.00010171,2]
[423697426,1780317044000,-345.96519996,0.00010188,2]
[423697425,1780317044000,-150.0,0.00010184,2]
[423697433,1780317044000,-345.96519996,0.0001021,2]
[423697430,1780317044000,-150.0,0.00010198,2]
[423697431,1780317044000,-345.96519996,0.00010199,2]
[423697427,1780317044000,-500.0,0.00010194,2]
[423697405,1780317044000,-345.96519996,0.00010132,2]
[423697417,1780317044000,-150.0,0.00010171,2]
[423697401,1780317044000,-345.96519996,0.00010121,2]
[423697379,1780317044000,-150.0,0.00010063,2]
[423697410,1780317044000,-150.0,0.00010145,2]
[423697428,1780317044000,-150.0,0.00010194,2]
[423697375,1780317044000,-150.0,0.00010046,2]
[423697376,1780317044000,-345.96519996,0.00010054,2]
[423697378,1780317044000,-150.0,0.00010061,2]
[423697377,1780317044000,-150.0,0.00010056,2]
[423697384,1780317044000,-150.0,0.00010076,2]
[423697383,1780317044000,-345.96519996,0.00010076,2]
[423697385,1780317044000,-150.0,0.00010079,2]
[423697381,1780317044000,-150.0,0.00010066,2]
[423697380,1780317044000,-345.96519996,0.00010065,2]
[423697382,1780317044000,-150.0,0.00010066,2]
[423697386,1780317044000,-150.0,0.00010079,2]
[423697387,1780317044000,-345.96519996,0.00010087,2]
[423697394,1780317044000,-150.0,0.00010106,2]
[423697396,1780317044000,-345.96519996,0.0001011,2]
[423697388,1780317044000,-150.0,0.00010091,2]
[423697389,1780317044000,-150.0,0.00010092,2]
[423697393,1780317044000,-150.0,0.00010105,2]
[423697391,1780317044000,-150.0,0.00010101,2]
[423697390,1780317044000,-345.96519996,0.00010098,2]
[423697392,1780317044000,-150.0,0.00010102,2]
[423697399,1780317044000,-150.0,0.00010118,2]
[423697408,1780317044000,-150.0,0.00010139,2]
[423697411,1780317044000,-150.0,0.00010145,2]
[423697412,1780317044000,-150.0,0.00010148,2]
[423697409,1780317044000,-345.96519996,0.00010143,2]
[423697432,1780317044000,-150.0,0.00010208,2]
[423697448,1780317044000,-150.0,0.00010256,2]
[423697446,1780317044000,-150.0,0.00010254,2]
[423697457,1780317044000,-150.0,0.00010286,2]
[423697476,1780317044000,-345.96519996,0.00010345,2]
[423697477,1780317044000,-150.0,0.00010346,2]
[423697479,1780317044000,-150.0,0.00010356,2]
[423697478,1780317044000,-150.0,0.00010356,2]
[423697469,1780317044000,-150.0,0.0001033,2]
[423697468,1780317044000,-345.96519996,0.00010323,2]
[423697467,1780317044000,-150.0,0.00010316,2]
[423697474,1780317044000,-2000.0,0.00010341,2]
[423697470,1780317044000,-150.0,0.00010331,2]
[423697475,1780317044000,-150.0,0.00010343,2]
[423697463,1780317044000,-150.0,0.00010303,2]
[423697471,1780317044000,-150.0,0.00010331,2]
[423697484,1780317044000,-150.0,0.00010361,2]
[423697480,1780317044000,-150.0,0.00010356,2]
[423697481,1780317044000,-150.0,0.00010356,2]
[423697483,1780317044000,-345.96519996,0.00010356,2]
[423697482,1780317044000,-150.0,0.00010356,2]
[423697486,1780317044000,-150.0,0.00010369,2]
[423697485,1780317044000,-345.96519996,0.00010367,2]
[423697487,1780317044000,-166.66,0.00010375,2]
[423697488,1780317044000,-150.0,0.00010376,2]
[423697489,1780317044000,-345.96519996,0.00010379,2]
[423697436,1780317044000,-150.0,0.00010217,2]
[423697473,1780317044000,-345.96519996,0.00010334,2]
[423697466,1780317044000,-345.96519996,0.00010311,2]
[423697472,1780317044000,-150.0,0.00010333,2]
[423697458,1780317044000,-150.0,0.00010287,2]
[423697465,1780317044000,-150.0,0.0001031,2]
[423697438,1780317044000,-150.0,0.00010224,2]
[423697437,1780317044000,-345.96519996,0.00010222,2]
[423697442,1780317044000,-150.0,0.00010241,2]
[423697439,1780317044000,-150.0,0.00010224,2]
[423697440,1780317044000,-150.0,0.00010226,2]
[423697443,1780317044000,-150.0,0.00010241,2]
[423697441,1780317044000,-345.96519996,0.00010233,2]
[423697444,1780317044000,-345.96519996,0.00010244,2]
[423697445,1780317044000,-150.0,0.0001025,2]
[423697447,1780317044000,-345.96519996,0.00010255,2]
[423697452,1780317044000,-345.96519996,0.00010267,2]
[423697435,1780317044000,-150.0,0.00010216,2]
[423697464,1780317044000,-150.0,0.00010303,2]
[423697451,1780317044000,-150.0,0.00010264,2]
[423697462,1780317044000,-150.0,0.00010301,2]
[423697461,1780317044000,-345.96519996,0.000103,2]
[423697459,1780317044000,-345.96519996,0.00010289,2]
[423697456,1780317044000,-4000.0,0.00010278,2]
[423697460,1780317044000,-150.0,0.00010292,2]
[423697454,1780317044000,-150.0,0.00010277,2]
[423697453,1780317044000,-150.0,0.00010271,2]
[423697449,1780317044000,-150.0,0.00010264,2]
[423697455,1780317044000,-345.96519996,0.00010278,2]
[423697450,1780317044000,-150.0,0.00010264,2]
[423697525,1780317045000,-345.96519996,0.00010479,2]
[423697538,1780317045000,-150.0,0.00010518,2]
[423697537,1780317045000,-150.0,0.00010515,2]
[423697527,1780317045000,-150.0,0.00010484,2]
[423697524,1780317045000,-150.99,0.00010475,2]
[423697522,1780317045000,-9999.99,0.00010475,2]
[423697523,1780317045000,-982.53,0.00010475,2]
[423697518,1780317045000,-500.0,0.00010468,2]
[423697521,1780317045000,-206.84,0.00010475,2]
[423697529,1780317045000,-345.96519996,0.00010491,2]
[423697526,1780317045000,-150.0,0.00010481,2]
[423697519,1780317045000,-345.96519996,0.00010468,2]
[423697539,1780317045000,-150.0,0.00010522,2]
[423697534,1780317045000,-345.96519996,0.00010502,2]
[423697531,1780317045000,-150.0,0.00010496,2]
[423697532,1780317045000,-2897.76211871,0.000105,2]
[423697528,1780317045000,-150.0,0.00010488,2]
[423697530,1780317045000,-150.0,0.00010495,2]
[423697535,1780317045000,-150.0,0.00010511,2]
[423697536,1780317045000,-345.96519996,0.00010513,2]
[423697546,1780317045000,-150.0,0.00010541,2]
[423697545,1780317045000,-150.0,0.00010541,2]
[423697549,1780317045000,-150.0,0.00010541,2]
[423697544,1780317045000,-150.0,0.00010541,2]
[423697550,1780317045000,-345.96519996,0.00010547,2]
[423697533,1780317045000,-150.0,0.00010501,2]
[423697517,1780317045000,-150.0,0.00010466,2]
[423697491,1780317045000,-150.0,0.00010383,2]
[423697516,1780317045000,-150.0,0.00010462,2]
[423697490,1780317045000,-150.0,0.00010379,2]
[423697493,1780317045000,-345.96519996,0.0001039,2]
[423697503,1780317045000,-345.96519996,0.00010423,2]
[423697492,1780317045000,-150.0,0.00010383,2]
[423697499,1780317045000,-150.0,0.00010409,2]
[423697495,1780317045000,-345.96519996,0.00010401,2]
[423697498,1780317045000,-150.0,0.00010407,2]
[423697497,1780317045000,-150.0,0.00010406,2]
[423697494,1780317045000,-150.0,0.00010391,2]
[423697501,1780317045000,-150.0,0.00010421,2]
[423697500,1780317045000,-345.96519996,0.00010412,2]
[423697496,1780317045000,-150.0,0.00010402,2]
[423697502,1780317045000,-150.0,0.00010422,2]
[423697504,1780317045000,-150.0,0.00010426,2]
[423697505,1780317045000,-150.0,0.0001043,2]
[423697507,1780317045000,-150.0,0.00010435,2]
[423697506,1780317045000,-345.96519996,0.00010435,2]
[423697515,1780317045000,-150.0,0.00010462,2]
[423697514,1780317045000,-345.96519996,0.00010457,2]
[423697508,1780317045000,-150.0,0.00010436,2]
[423697510,1780317045000,-345.96519996,0.00010446,2]
[423697513,1780317045000,-150.0,0.00010451,2]
[423697509,1780317045000,-150.0,0.00010445,2]
[423697512,1780317045000,-150.0,0.00010449,2]
[423697511,1780317045000,-150.0,0.00010449,2]
[423697520,1780317045000,-150.0,0.00010472,2]
[423697547,1780317045000,-150.0,0.00010541,2]
[423697548,1780317045000,-150.0,0.00010541,2]
[423697540,1780317045000,-345.96519996,0.00010524,2]
[423697578,1780317045000,-150.0,0.00010637,2]
[423697581,1780317045000,-345.96519996,0.00010648,2]
[423697575,1780317045000,-150.0,0.00010634,2]
[423697577,1780317045000,-345.96519996,0.00010636,2]
[423697582,1780317045000,-150.0,0.00010652,2]
[423697583,1780317045000,-150.0,0.00010657,2]
[423697584,1780317045000,-345.96519996,0.00010659,2]